bitfinex/quotes_BTCUSD_20220115
["timestamp","ask_amount","ask_price","bid_price","bid_amount"]
[1642212271243,0.11644118,42951.0,42949.0,0.0011]
[1642212271539,0.28690733,42950.0,42949.0,0.0011]
[1642212271742,0.66330233,42950.0,42949.0,0.0011]
[1642212272141,0.76330233,42950.0,42949.0,0.0011]
[1642212272941,1.13254385,42950.0,42949.0,0.0011]
[1642212273340,0.84563652,42950.0,42949.0,0.0011]
[1642212273540,0.86063652,42950.0,42949.0,0.0011]
[1642212274392,0.537595,42950.0,42949.0,0.0011]
[1642212274788,0.522595,42950.0,42949.0,0.0011]
[1642212275189,0.81969494,42950.0,42949.0,0.0011]
[1642212275592,0.88869494,42950.0,42949.0,0.0011]
[1642212276789,0.81969494,42950.0,42949.0,0.0011]
[1642212277590,0.91669494,42950.0,42949.0,0.0011]
[1642212278838,0.81969494,42950.0,42949.0,0.0011]
[1642212279037,0.77289494,42950.0,42949.0,0.0011]
[1642212279741,0.83289494,42950.0,42949.0,0.0011]
[1642212280940,0.475795,42950.0,42949.0,0.0011]
[1642212281539,0.538795,42950.0,42949.0,0.0011]
[1642212282797,0.475795,42950.0,42949.0,0.0011]
[1642212283694,0.541795,42950.0,42949.0,0.0011]
[1642212284796,0.475795,42950.0,42949.0,0.0011]
[1642212285196,0.76164725,42950.0,42949.0,0.0011]
[1642212285656,0.82464725,42950.0,42949.0,0.0011]
[1642212287456,0.76164725,42950.0,42949.0,0.0011]
[1642212287661,0.80564725,42950.0,42949.0,0.0011]
[1642212288859,0.76164725,42950.0,42949.0,0.0011]
[1642212289792,0.82364725,42950.0,42949.0,0.0011]
[1642212290795,0.76164725,42950.0,42949.0,0.0011]
[1642212291694,0.82564725,42950.0,42949.0,0.0011]
[1642212292895,0.76164725,42950.0,42949.0,0.0011]
[1642212293838,0.82164725,42950.0,42949.0,0.0011]
[1642212294238,0.43461864,42949.0,42941.0,0.56318401]
[1642212294439,0.43461864,42949.0,42941.0,0.55318401]
[1642212294440,0.104425,42948.0,42941.0,0.55318401]
[1642212294640,0.5774,42943.0,42941.0,0.55318401]
[1642212294840,0.0462,42942.0,42941.0,0.55318401]
[1642212295037,0.0462,42942.0,42935.0,1.08785315]
[1642212295241,0.29021702,42939.0,42933.0,0.26316529]
[1642212295439,0.0462,42938.0,42933.0,0.26316529]
[1642212296038,0.36953817,42937.0,42933.0,0.26316529]
[1642212296238,0.0462,42936.0,42933.0,0.26316529]
[1642212296886,0.0462,42936.0,42934.0,0.19174037]
[1642212298486,0.0462,42936.0,42933.0,0.26316529]
[1642212298688,0.0462,42936.0,42933.0,0.0011]
[1642212302858,0.02504189,42935.0,42933.0,0.0011]
[1642212303055,0.07729429,42935.0,42933.0,0.0011]
[1642212305697,0.0522524,42935.0,42933.0,0.0011]
[1642212306496,0.0522524,42935.0,42933.0,0.059323]
[1642212308146,0.0522524,42935.0,42933.0,0.0011]
[1642212311144,0.0322524,42935.0,42933.0,0.0011]
[1642212312603,0.0060524,42935.0,42933.0,0.0011]
[1642212314304,0.0060524,42935.0,42934.0,0.376425]
[1642212315406,0.0060524,42935.0,42934.0,1.20747006]
[1642212316245,0.0060524,42935.0,42934.0,1.43615263]
[1642212316847,0.0060524,42935.0,42934.0,1.57142303]
[1642212317649,0.0060524,42935.0,42934.0,0.87564837]
[1642212318748,0.0060524,42935.0,42934.0,1.57310073]
[1642212319391,0.0060524,42935.0,42934.0,0.87564837]
[1642212319591,0.54816243,42943.0,42934.0,0.87564837]
[1642212319592,0.002,42943.0,42934.0,1.12682205]
[1642212319794,0.002,42943.0,42941.0,0.00128631]
[1642212319990,0.002,42943.0,42942.0,0.058209]
[1642212320393,0.002,42943.0,42942.0,0.434634]
[1642212320594,0.002,42943.0,42942.0,0.67813959]
[1642212320995,0.31719138,42948.0,42942.0,0.67813959]
[1642212321296,0.31719138,42948.0,42942.0,0.30171459]
[1642212321694,0.31719138,42948.0,42942.0,0.066209]
[1642212321993,0.27580562,42949.0,42942.0,0.008]
[1642212322193,0.27580562,42949.0,42943.0,0.59773955]
[1642212323069,0.25480562,42949.0,42943.0,0.30230289]
[1642212325672,0.58709022,42951.0,42943.0,0.30230289]
[1642212326897,0.1,42951.0,42943.0,0.30230289]
[1642212327100,0.69758172,42952.0,42943.0,0.30230289]
[1642212327300,0.69758172,42952.0,42943.0,1.24143536]
[1642212327698,0.71158172,42952.0,42943.0,1.24143536]
[1642212328000,0.114,42952.0,42944.0,0.59773955]
[1642212328201,0.014,42952.0,42945.0,0.058206]
[1642212328900,1.66911374,42955.0,42946.0,0.59773955]
[1642212328901,1.57438172,42955.0,42946.0,0.59773955]
[1642212329103,1.57438172,42955.0,42950.0,0.24798031]
[1642212329300,0.376425,42954.0,42950.0,0.24798031]
[1642212329602,0.59758172,42955.0,42951.0,0.0012393]
[1642212329802,0.76458172,42955.0,42951.0,0.0012393]
[1642212330002,0.167,42955.0,42951.0,0.0012393]
[1642212330402,0.376425,42954.0,42948.0,0.59773955]
[1642212331048,0.376425,42954.0,42949.0,0.59773955]
[1642212331245,0.376425,42954.0,42946.0,0.00127606]
[1642212331445,0.31577168,42954.0,42948.0,0.25834035]
[1642212331845,0.376425,42953.0,42948.0,0.25834035]
[1642212332045,0.376425,42953.0,42946.0,0.00127606]
[1642212332245,0.31577168,42954.0,42946.0,0.00127606]
[1642212333045,0.376425,42953.0,42946.0,0.00127606]
[1642212333647,0.31577168,42954.0,42946.0,0.00127606]
[1642212333947,0.37477168,42954.0,42946.0,0.00127606]
[1642212334994,0.31577168,42954.0,42946.0,0.00127606]
[1642212335795,0.34194692,42955.0,42946.0,0.00127606]
[1642212336198,0.44194692,42955.0,42946.0,0.00127606]
[1642212336395,0.152,42955.0,42946.0,0.00127606]
[1642212336998,0.27602699,42953.0,42946.0,0.00127606]
[1642212337697,0.27602699,42953.0,42946.0,0.05947906]
[1642212337898,0.165,42955.0,42946.0,0.05947906]
[1642212338140,0.065,42955.0,42946.0,0.05947906]
[1642212338940,0.34767458,42955.0,42946.0,0.05947906]
[1642212339140,0.42266773,42955.0,42946.0,0.05947906]
[1642212339342,0.7050126,42955.0,42946.0,0.05947906]
[1642212339540,0.376425,42954.0,42946.0,0.05947906]
[1642212339740,0.78252828,42955.0,42946.0,0.05947906]
[1642212340245,0.171,42955.0,42948.0,0.058203]
[1642212340441,0.071,42955.0,42948.0,0.058203]
[1642212341443,0.071,42955.0,42952.0,0.32999607]
[1642212341644,0.376425,42954.0,42952.0,0.32999607]
[1642212341906,0.071,42955.0,42952.0,0.32999607]
[1642212344007,1.0287813,42960.0,42952.0,0.38819307]
[1642212344205,0.376425,42959.0,42952.0,0.38819307]
[1642212344404,0.0433,42960.0,42956.0,0.00123958]
[1642212344606,0.376425,42959.0,42956.0,0.00123958]
[1642212344803,0.0433,42960.0,42956.0,0.00123958]
[1642212345004,2.87655463,42963.0,42956.0,0.00123958]
[1642212345204,0.64880995,42962.0,42956.0,0.00123958]
[1642212345644,0.93385329,42962.0,42956.0,0.00123958]
[1642212345853,0.95004824,42962.0,42956.0,0.00123958]
[1642212346447,0.95004824,42962.0,42952.0,0.32999607]
[1642212346448,1.04924363,42962.0,42952.0,0.32999607]
[1642212346648,1.05175449,42962.0,42952.0,0.32999607]
[1642212346847,0.76880995,42962.0,42952.0,0.32999607]
[1642212347050,0.74880995,42962.0,42952.0,0.32999607]
[1642212347448,1.02888732,42962.0,42952.0,0.32999607]
[1642212347650,0.74880995,42962.0,42952.0,0.32999607]
[1642212347849,0.82680995,42962.0,42952.0,0.32999607]
[1642212348950,0.74880995,42962.0,42952.0,0.32999607]
[1642212349800,0.80080995,42962.0,42952.0,0.32999607]
[1642212350197,0.42438495,42962.0,42952.0,0.32999607]
[1642212350999,0.37238495,42962.0,42952.0,0.32999607]
[1642212351400,0.27238495,42962.0,42955.0,0.058192]
[1642212351603,0.376425,42961.0,42955.0,0.058192]
[1642212351900,0.27238495,42962.0,42955.0,0.058192]
[1642212352100,0.376425,42961.0,42955.0,0.058192]
[1642212352803,0.056,42963.0,42956.0,0.0012636]
[1642212353050,0.59490166,42965.0,42959.0,0.00124195]
[1642212353649,0.59490166,42965.0,42960.0,0.27950149]
[1642212353848,0.59490166,42965.0,42960.0,0.62130308]
[1642212354049,0.59490166,42965.0,42962.0,0.05817844]
[1642212354249,0.59490166,42965.0,42963.0,0.058178]
[1642212357204,0.59459162,42965.0,42963.0,0.058178]
[1642212357605,0.5809,42971.0,42964.0,0.00124968]
[1642212357807,0.5809,42971.0,42965.0,0.058174]
[1642212358207,0.79320221,42973.0,42965.0,0.058174]
[1642212358406,0.48377372,42967.0,42966.0,0.00127004]
[1642212358807,0.48377372,42967.0,42966.0,0.30243649]
[1642212359609,0.79320221,42973.0,42968.0,0.312409]
[1642212360408,0.79320221,42973.0,42969.0,0.25331702]
[1642212361047,0.79320221,42973.0,42966.0,0.00127004]
[1642212361247,0.79320221,42973.0,42966.0,0.28900525]
[1642212361445,0.79320221,42973.0,42966.0,0.28954117]
[1642212361848,0.79320221,42973.0,42966.0,0.00127004]
[1642212362650,0.376425,42972.0,42966.0,0.00127004]
[1642212364898,0.34068172,42975.0,42966.0,0.00127004]
[1642212365100,0.376425,42974.0,42961.0,0.03562451]
[1642212365305,0.6928441,42975.0,42961.0,0.03684784]
[1642212365502,0.476425,42974.0,42961.0,0.03684784]
[1642212365703,0.44068172,42975.0,42961.0,0.03684784]
[1642212365704,0.49886972,42975.0,42961.0,0.03684784]
[1642212365902,0.1,42974.0,42961.0,0.03684784]
[1642212366103,0.49886788,42975.0,42963.0,0.28739276]
[1642212366502,0.44068172,42975.0,42963.0,0.28739276]
[1642212367102,0.42798172,42975.0,42964.0,0.058179]
[1642212367303,0.32798172,42975.0,42966.0,0.058177]
[1642212367702,0.42798172,42975.0,42964.0,0.29237297]
[1642212368749,0.42798172,42975.0,42964.0,0.46690567]
[1642212369149,0.42798172,42975.0,42964.0,0.40872667]
[1642212369949,0.42798172,42975.0,42966.0,0.0012071]
[1642212370150,0.42798172,42975.0,42968.0,0.058174]
[1642212370349,0.376425,42974.0,42968.0,0.11634539]
[1642212370554,0.376425,42974.0,42968.0,0.058174]
[1642212371051,0.1,42975.0,42968.0,0.058174]
[1642212371251,0.4082,42976.0,42968.0,0.058174]
[1642212371450,0.376425,42975.0,42968.0,0.058174]
[1642212371651,0.41782269,42975.0,42970.0,0.25431537]
[1642212371902,0.1,42975.0,42970.0,0.25431537]
[1642212372102,0.00604617,42977.0,42970.0,0.31248837]
[1642212372404,0.376425,42976.0,42970.0,0.31248837]
[1642212372602,0.00604617,42977.0,42970.0,0.31248837]
[1642212373105,0.00604617,42977.0,42971.0,0.05816954]
[1642212373302,0.00604617,42977.0,42973.0,0.058169]
[1642212373504,0.376425,42976.0,42973.0,0.058169]
[1642212373702,0.00604617,42977.0,42973.0,0.32199608]
[1642212374003,0.001,42980.0,42974.0,0.31067115]
[1642212374205,0.001,42980.0,42975.0,0.058166]
[1642212375005,0.001,42980.0,42978.0,0.25880278]
[1642212375206,0.001,42980.0,42978.0,0.31696278]
[1642212375953,0.001,42980.0,42978.0,0.60662356]
[1642212376356,0.001,42980.0,42978.0,0.31696278]
[1642212376754,0.001,42980.0,42979.0,0.29010328]
[1642212377153,0.001,42980.0,42979.0,0.73794828]
[1642212377354,1.15525997,42990.0,42986.0,0.05815]
[1642212377554,0.376425,42989.0,42986.0,0.116299]
[1642212377753,0.376425,42989.0,42987.0,0.33476133]
[1642212377954,0.376425,42989.0,42986.0,0.116299]
[1642212378154,0.376425,42989.0,42981.0,0.64255105]
[1642212378155,0.376425,42989.0,42982.0,0.232596]
[1642212378555,0.376425,42989.0,42981.0,0.64255105]
[1642212378752,0.376425,42989.0,42981.0,2.69921006]
[1642212378953,0.5751,42992.0,42982.0,0.55337031]
[1642212379153,0.6751,42992.0,42982.0,0.26743772]
[1642212379913,0.733264,42992.0,42982.0,0.26743772]
[1642212380106,0.733264,42992.0,42982.0,0.55702096]
[1642212380306,0.6751,42992.0,42982.0,0.26743772]
[1642212380509,0.6751,42992.0,42982.0,0.5524683]
[1642212380708,0.6751,42992.0,42982.0,0.26743772]
[1642212381706,0.6751,42992.0,42987.0,0.00126731]
[1642212381707,0.5751,42992.0,42987.0,0.00126731]
[1642212382107,0.001,42995.0,42987.0,0.00126731]
[1642212382506,0.001,42995.0,42991.0,0.00121328]
[1642212385261,0.33384903,42995.0,42991.0,0.00121328]
[1642212386663,0.001,42995.0,42991.0,0.00121328]
[1642212387098,0.001,42995.0,42990.0,0.434571]
[1642212387802,0.001,42995.0,42990.0,0.4340202]
[1642212388001,0.001,42995.0,42991.0,0.28416023]
[1642212388198,0.001,42995.0,42990.0,0.064146]
[1642212388399,0.001,42995.0,42990.0,0.006]
[1642212389100,0.001,42995.0,42988.0,0.0012]
[1642212389303,0.001,42995.0,42989.0,0.24465616]
[1642212390848,0.001,42995.0,42989.0,0.30280316]
[1642212391849,0.001,42995.0,42990.0,0.05814411]
[1642212392049,0.001,42995.0,42991.0,0.29628714]
[1642212392850,0.001,42995.0,42991.0,0.57537581]
[1642212393050,0.001,42995.0,42992.0,0.376309]
[1642212393650,0.001,42995.0,42993.0,0.28792669]
[1642212394296,0.001,42995.0,42993.0,0.66423569]
[1642212395899,0.001,42995.0,42993.0,0.67223569]
[1642212396301,0.001,42995.0,42993.0,0.384309]
[1642212396701,0.001,42995.0,42993.0,0.008]
[1642212397400,0.001,42995.0,42991.0,0.27908867]
[1642212399253,0.001,42995.0,42992.0,0.376309]
[1642212402405,0.001,42995.0,42992.0,0.65990245]
[1642212403807,0.001,42995.0,42992.0,0.376309]
[1642212404007,0.001,42995.0,42993.0,0.29026106]
[1642212404209,0.001,42995.0,42993.0,0.44301906]
[1642212406050,0.001,42995.0,42993.0,0.46801906]
[1642212408052,0.001,42995.0,42993.0,0.49001906]
[1642212408252,0.001,42995.0,42993.0,0.46501906]
[1642212409302,0.001,42995.0,42993.0,0.44301906]
[1642212409903,0.001,42995.0,42993.0,0.49001906]
[1642212411302,0.001,42995.0,42993.0,0.44301906]
[1642212411504,0.001,42995.0,42993.0,0.152758]
[1642212414150,0.001,42995.0,42991.0,0.031]
[1642212415250,0.33342952,42992.0,42988.0,0.3026]
[1642212415452,0.33342952,42992.0,42989.0,0.376309]
[1642212415751,0.001,42995.0,42989.0,0.376309]
[1642212420402,0.28544914,42995.0,42989.0,0.376309]
[1642212420657,0.28544914,42995.0,42986.0,0.01726141]
[1642212420658,0.0462,42993.0,42986.0,0.01726141]
[1642212420859,0.35820958,42992.0,42986.0,0.016]
[1642212421257,0.35820958,42992.0,42981.0,2.37998119]
[1642212421458,0.31099377,42987.0,42982.0,0.28832042]
[1642212421659,0.31099377,42987.0,42983.0,0.42819408]
[1642212422061,0.35820958,42992.0,42984.0,0.376309]
[1642212422257,0.35820958,42992.0,42983.0,0.42819408]
[1642212422460,0.45820958,42992.0,42983.0,0.42819408]
[1642212423457,0.28721166,42990.0,42983.0,0.42819408]
[1642212423660,0.33341166,42990.0,42984.0,0.376309]
[1642212425215,0.0462,42990.0,42984.0,0.376309]
[1642212426417,0.0462,42990.0,42987.0,0.24733628]
[1642212426617,0.27948101,42989.0,42983.0,0.44619408]
[1642212426819,0.0462,42990.0,42984.0,0.376309]
[1642212427418,0.0412,42990.0,42984.0,0.376309]
[1642212427621,0.0412,42990.0,42986.0,0.30372055]
[1642212427819,0.0412,42990.0,42983.0,0.44619408]
[1642212428046,0.0412,42990.0,42984.0,0.376309]
[1642212428946,0.0412,42990.0,42984.0,0.375309]
[1642212429145,0.0412,42990.0,42984.0,0.66067795]
[1642212429646,0.0412,42990.0,42984.0,0.71882695]
[1642212429945,0.0412,42990.0,42985.0,0.05815]
[1642212430150,0.0412,42990.0,42986.0,0.152862]
[1642212437554,0.0412,42990.0,42984.0,0.28536895]
[1642212437755,0.0412,42990.0,42985.0,0.376323]
[1642212438855,0.0412,42990.0,42985.0,0.434474]
[1642212439902,0.0412,42990.0,42986.0,0.05]
[1642212440102,0.66459907,42992.0,42987.0,0.151833]
[1642212440307,0.66459907,42992.0,42985.0,0.013]
[1642212440506,0.077,42992.0,42985.0,0.013]
[1642212440904,0.077,42992.0,42986.0,0.376323]
[1642212441305,0.077,42992.0,42987.0,0.058146]
[1642212441505,0.0472,42994.0,42987.0,0.058146]
[1642212441904,0.29366925,42993.0,42987.0,0.058146]
[1642212442704,0.29366925,42993.0,42987.0,0.17443966]
[1642212442906,0.29366925,42993.0,42987.0,0.058148]
[1642212443160,0.29567768,42992.0,42984.0,0.29236895]
[1642212443355,0.29567768,42992.0,42984.0,0.28536895]
[1642212443557,0.29567768,42992.0,42985.0,0.376323]
[1642212444455,1.33155418,42993.0,42985.0,0.376323]
[1642212444656,1.33155418,42993.0,42984.0,0.35452095]
[1642212445156,0.63570856,42993.0,42984.0,0.29636895]
[1642212445358,0.57270856,42993.0,42984.0,0.28536895]
[1642212445557,0.67270856,42993.0,42984.0,0.28536895]
[1642212445759,1.36855418,42993.0,42984.0,0.28536895]
[1642212445957,0.28086227,42992.0,42984.0,0.28536895]
[1642212446157,0.28086227,42992.0,42983.0,0.44147715]
[1642212447202,0.28086227,42992.0,42984.0,0.27656702]
[1642212447402,1.08951487,42993.0,42984.0,0.27656702]
[1642212447702,0.97449867,42992.0,42984.0,0.27656702]
[1642212448104,0.79584562,42992.0,42984.0,0.27656702]
[1642212448306,0.28180769,42991.0,42984.0,0.27656702]
[1642212448504,0.28180769,42991.0,42985.0,0.376323]
[1642212449104,0.59721456,42990.0,42985.0,0.376323]
[1642212449903,0.27859822,42991.0,42985.0,0.376323]
[1642212450104,0.033,42990.0,42985.0,0.376323]
[1642212451453,0.59721456,42991.0,42985.0,0.376323]
[1642212451850,0.59721456,42991.0,42985.0,0.434474]
[1642212452051,0.69721456,42992.0,42985.0,0.434474]
[1642212452252,0.035,42991.0,42985.0,0.434474]
[1642212453556,0.3966202,42992.0,42985.0,0.434474]
[1642212453954,0.3966202,42992.0,42985.0,0.058151]
[1642212454301,0.3966202,42992.0,42985.0,0.068151]
[1642212454702,0.3966202,42992.0,42985.0,0.01]
[1642212454903,0.2966202,42992.0,42985.0,0.01]
[1642212455103,0.3966202,42992.0,42985.0,0.01]
[1642212455503,0.3966202,42992.0,42984.0,0.27656702]
[1642212456107,0.2966202,42992.0,42984.0,0.27656702]
[1642212456306,0.3966202,42992.0,42984.0,0.27656702]
[1642212456706,0.99383476,42992.0,42984.0,0.27656702]
[1642212458251,1.03583476,42992.0,42984.0,0.27656702]
[1642212459352,0.59721456,42991.0,42984.0,0.27656702]
[1642212459552,0.69721456,42991.0,42984.0,0.27656702]
[1642212460153,0.73421456,42991.0,42984.0,0.27656702]
[1642212460953,0.75913067,42991.0,42983.0,0.01428307]
[1642212461159,0.20811611,42991.0,42983.0,0.013]
[1642212461353,0.20811611,42991.0,42982.0,0.59415412]
[1642212461555,0.07111611,42991.0,42982.0,0.59415412]
[1642212461796,0.59721456,42990.0,42980.0,0.59415412]
[1642212461998,0.0462,42989.0,42980.0,0.59415412]
[1642212462203,0.30243538,42984.0,42982.0,0.029]
[1642212463398,0.30243538,42984.0,42980.0,0.59415412]
[1642212463600,0.30243538,42984.0,42981.0,0.59415412]
[1642212463801,0.30243538,42984.0,42982.0,1.87355569]
[1642212464202,0.30243538,42984.0,42981.0,0.69515412]
[1642212464399,0.30243538,42984.0,42981.0,0.101]
[1642212464799,0.580791,42984.0,42981.0,0.101]
[1642212464998,0.30243538,42984.0,42981.0,0.101]
[1642212465399,0.30243538,42984.0,42980.0,0.59415412]
[1642212466252,0.30243538,42984.0,42980.0,0.67915412]
[1642212467054,0.29423996,42983.0,42980.0,0.67915412]
[1642212467255,0.40243538,42984.0,42980.0,0.67915412]
[1642212467454,0.0462,42988.0,42980.0,0.59415412]
[1642212467955,0.64341456,42988.0,42979.0,0.232612]
[1642212468252,0.64341456,42988.0,42980.0,0.037]
[1642212468653,0.64341456,42988.0,42983.0,0.05815268]
[1642212468854,0.0462,42988.0,42984.0,0.26215991]
[1642212469736,0.0462,42988.0,42984.0,0.32031291]
[1642212470735,0.0462,42988.0,42986.0,0.05815]
[1642212471639,0.0462,42988.0,42984.0,0.26215991]
[1642212475361,1.02441456,42991.0,42985.0,0.35040762]
[1642212475362,0.61921456,42991.0,42985.0,0.35040762]
[1642212475561,0.59721456,42991.0,42985.0,0.29225762]
[1642212476263,0.026,42991.0,42990.0,0.24476229]
[1642212476461,0.026,42991.0,42990.0,0.65711748]
[1642212476662,0.026,42991.0,42990.0,0.41235519]
[1642212477400,0.001,42994.0,42990.0,0.41235519]
[1642212477601,0.241933,42993.0,42990.0,0.41235519]
[1642212478202,0.241933,42993.0,42990.0,0.41635519]
[1642212478402,0.001,42994.0,42990.0,0.41635519]
[1642212479409,0.001,42994.0,42991.0,0.35291522]
[1642212479804,0.001,42994.0,42991.0,0.058141]
[1642212480585,0.001,42994.0,42991.0,2.71582353]
[1642212480786,0.001,42994.0,42992.0,0.376313]
[1642212485007,0.001,42994.0,42992.0,0.66388553]
[1642212485609,0.001,42994.0,42993.0,0.28100554]
[1642212485812,0.001,42994.0,42993.0,0.56714954]
[1642212486011,0.001,42994.0,42993.0,0.286144]
[1642212491261,0.001,42994.0,42993.0,0.58009262]
[1642212491923,0.001,42994.0,42993.0,0.61479065]
[1642212492326,0.001,42994.0,42993.0,0.63779065]
[1642212492524,0.001,42994.0,42993.0,0.83779065]
[1642212493524,0.001,42994.0,42993.0,0.81479065]
[1642212494324,0.001,42994.0,42993.0,0.84279065]
[1642212495559,0.001,42994.0,42993.0,0.81479065]
[1642212496255,0.001,42994.0,42993.0,0.64379065]
[1642212497057,0.001,42994.0,42993.0,0.315144]
[1642212497461,0.001,42994.0,42993.0,0.286144]
[1642212497659,0.00054,43003.0,42994.0,0.376294]
[1642212497859,0.59721456,43002.0,42993.0,0.59415412]
[1642212498258,0.59721456,43002.0,42993.0,0.59915412]
[1642212498459,0.59721456,43002.0,42993.0,0.65729312]
[1642212498660,0.59721456,43002.0,42994.0,0.376313]
[1642212498860,0.59619456,43002.0,42999.0,0.56681673]
[1642212499501,0.00054,43003.0,42999.0,0.56681673]
[1642212499701,0.67410562,43005.0,42999.0,0.56681673]
[1642212500300,0.84068562,43005.0,42999.0,0.56681673]
[1642212500701,0.84068562,43005.0,42999.0,0.62494773]
[1642212500901,0.84068562,43005.0,42999.0,0.68307773]
[1642212501101,0.84068562,43005.0,42999.0,0.62494673]
[1642212501804,0.84068562,43005.0,43000.0,0.05812782]
[1642212501805,0.168,43005.0,43000.0,0.05812782]
[1642212502202,2.2528,43009.0,43000.0,0.05812782]
[1642212502402,0.376313,43008.0,43003.0,0.33150882]
[1642212502606,0.476313,43008.0,43003.0,0.33150882]
[1642212502802,0.72132555,43008.0,43003.0,0.33150882]
[1642212503256,0.50715186,43007.0,43003.0,0.33150882]
[1642212503455,0.376313,43006.0,43003.0,0.33150882]
[1642212504355,0.50715186,43007.0,43003.0,0.33150882]
[1642212504356,0.65415186,43007.0,43003.0,0.33150882]
[1642212504557,0.147,43007.0,43003.0,0.33150882]
[1642212505557,0.29751442,43008.0,43003.0,0.33150882]
[1642212506357,1.1584198,43012.0,43003.0,0.33150882]
[1642212506557,0.376313,43011.0,43003.0,0.33150882]
[1642212507011,0.476313,43011.0,43003.0,0.33150882]
[1642212507610,0.59654115,43009.0,43003.0,0.38963482]
[1642212508010,0.59654115,43009.0,43004.0,0.3109944]
[1642212508211,0.59654115,43009.0,43007.0,0.00128016]
[1642212508212,0.72654115,43009.0,43007.0,0.00128016]
[1642212508410,0.72654115,43009.0,43008.0,0.33744658]
[1642212508411,0.13,43009.0,43008.0,0.33744658]
[1642212509611,0.59654115,43010.0,43008.0,0.33744658]
[1642212509815,1.18294115,43018.0,43009.0,0.058119]
[1642212510011,0.376313,43017.0,43009.0,0.058119]
[1642212510562,0.376313,43017.0,43008.0,0.33744658]
[1642212510964,0.476313,43017.0,43008.0,0.33744658]
[1642212512262,0.579313,43017.0,43008.0,0.33744658]
[1642212513462,0.476313,43017.0,43008.0,0.33744658]
[1642212514310,0.604313,43017.0,43008.0,0.33744658]
[1642212514510,1.20085415,43017.0,43008.0,0.33744658]
[1642212515516,1.28897295,43017.0,43008.0,0.33744658]
[1642212515714,1.07285415,43017.0,43008.0,0.33744658]
[1642212516413,1.37940162,43017.0,43008.0,0.33744658]
[1642212516614,0.78286047,43017.0,43008.0,0.33744658]
[1642212517013,1.37940162,43017.0,43008.0,0.33744658]
[1642212517515,1.28340162,43017.0,43008.0,0.33744658]
[1642212517913,1.07285415,43017.0,43008.0,0.33744658]
[1642212518162,1.07285415,43017.0,43003.0,0.33150882]
[1642212518463,1.17785415,43017.0,43003.0,0.33150882]
[1642212518759,1.17785415,43017.0,43003.0,0.38963582]
[1642212519160,0.32342355,43012.0,43006.0,0.26347139]
[1642212519361,0.32342355,43012.0,43003.0,0.38963582]
[1642212519661,0.31342355,43012.0,43003.0,0.44776108]
[1642212520060,0.31342355,43012.0,43005.0,0.058125]
[1642212520461,0.31342355,43012.0,43007.0,0.28113074]
[1642212520661,0.31864018,43016.0,43007.0,0.28113074]
[1642212520862,0.41864018,43016.0,43007.0,0.28113074]
[1642212521660,0.33114263,43015.0,43007.0,0.33925274]
[1642212522113,0.43114263,43015.0,43007.0,0.28113074]
[1642212522714,0.43114263,43015.0,43004.0,0.058126]
[1642212524315,0.49814263,43015.0,43004.0,0.058126]
[1642212524515,0.49814263,43015.0,43006.0,0.3298854]
[1642212524715,0.376313,43014.0,43006.0,0.3298854]
[1642212525117,0.476313,43014.0,43006.0,0.3298854]
[1642212526360,0.552313,43014.0,43006.0,0.3298854]
[1642212526561,0.176,43014.0,43006.0,0.3880094]
[1642212526962,0.176,43014.0,43006.0,0.3298854]
[1642212527162,0.076,43014.0,43006.0,0.3298854]
[1642212527564,0.43114263,43015.0,43006.0,0.3298854]
[1642212528364,0.162,43015.0,43006.0,0.3298854]
[1642212528564,0.062,43015.0,43006.0,0.3880043]
[1642212528964,0.062,43015.0,43007.0,0.28456593]
[1642212529317,0.062,43015.0,43006.0,0.3880043]
[1642212529518,0.6386425,43016.0,43006.0,0.3880043]
[1642212529718,0.29064018,43016.0,43006.0,0.3880064]
[1642212529918,0.29064018,43016.0,43007.0,0.28157233]
[1642212530721,0.28905556,43015.0,43007.0,0.28157233]
[1642212531223,0.28905556,43015.0,43006.0,0.3298854]
[1642212531824,0.28905556,43015.0,43007.0,0.2815547]
[1642212532825,0.28905556,43015.0,43006.0,0.3880094]
[1642212533258,0.59654115,43013.0,43006.0,0.3880094]
[1642212534459,0.62654115,43013.0,43006.0,0.3880094]
[1642212534661,0.03,43013.0,43006.0,0.3298854]
[1642212535759,0.38905556,43015.0,43006.0,0.3298854]
[1642212536161,0.376313,43014.0,43006.0,0.3298854]
[1642212536562,0.476313,43014.0,43006.0,0.3298854]
[1642212538015,0.1,43014.0,43006.0,0.3298854]
[1642212538216,0.1,43014.0,43006.0,0.3880084]
[1642212538417,0.068,43014.0,43006.0,0.3880084]
[1642212539016,0.068,43014.0,43006.0,0.3298854]
[1642212539716,0.38905556,43015.0,43006.0,0.3298854]
[1642212541064,0.376313,43014.0,43006.0,0.3298854]
[1642212541458,0.476313,43014.0,43006.0,0.3298854]
[1642212542462,0.524313,43014.0,43006.0,0.3298854]
[1642212542865,0.524313,43014.0,43003.0,0.058127]
[1642212543063,0.148,43014.0,43003.0,0.058127]
[1642212543563,0.38905556,43015.0,43003.0,0.058127]
[1642212543764,0.28905556,43015.0,43003.0,0.058127]
[1642212543965,0.38905556,43015.0,43003.0,0.058127]
[1642212544413,0.38905556,43015.0,43004.0,0.29139789]
[1642212545014,0.70087896,43014.0,43001.0,0.00823146]
[1642212545216,0.00126354,43008.0,43001.0,0.007]
[1642212545412,0.0462,43007.0,43001.0,0.007]
[1642212546015,0.0462,43007.0,43002.0,0.2782701]
[1642212546214,0.0462,43007.0,43000.0,0.3]
[1642212547315,0.0462,43007.0,43000.0,0.5720472]
[1642212547715,0.0462,43007.0,43000.0,0.3]
[1642212548163,0.0462,43007.0,43001.0,0.34190745]
[1642212551269,0.0462,43007.0,43002.0,0.6604138]
[1642212551671,0.64274115,43007.0,43002.0,0.376313]
[1642212552119,0.64274115,43007.0,43003.0,0.11625423]
[1642212552318,0.59654115,43007.0,43004.0,0.28235495]
[1642212552516,0.017,43007.0,43004.0,0.28235495]
[1642212554319,0.028,43011.0,43004.0,0.28235495]
[1642212554921,0.028,43011.0,43005.0,0.058125]
[1642212555562,0.028,43011.0,43005.0,0.11624814]
[1642212555763,0.59654115,43012.0,43007.0,0.25663414]
[1642212555963,0.59654115,43012.0,43007.0,0.31475714]
[1642212556363,0.59654115,43013.0,43007.0,0.31475714]